bitfinex/quotes_ETHUSD_20251118
["timestamp","ask_amount","ask_price","bid_price","bid_amount"]
[1763431403365,0.002,3012.7,3010.4,0.405504]
[1763431403585,0.002,3012.7,3010.6,0.405504]
[1763431403898,0.4979,3012.6,3009.7,0.405504]
[1763431404060,0.03314346,3012.5,3009.5,0.66068281]
[1763431404260,5.811526,3011.8,3008.1,2.38001899]
[1763431404479,0.03314346,3011.7,3008.6,0.4979]
[1763431404700,0.4979,3011.6,3008.8,0.405504]
[1763431404995,0.4979,3011.6,3008.9,0.03323473]
[1763431405183,0.03314346,3011.5,3008.6,0.4979]
[1763431405388,0.03314346,3011.5,3008.7,0.6309426]
[1763431405591,0.4979,3011.4,3008.7,0.6309426]
[1763431405907,0.4979,3011.4,3008.8,0.4979]
[1763431406089,0.4979,3012.3,3009.2,0.90699264]
[1763431406292,0.4979,3012.2,3009.9,0.90699264]
[1763431406597,0.4979,3012.2,3009.3,0.405504]
[1763431406598,0.03314346,3012.1,3009.3,0.405504]
[1763431406776,0.4979,3012.2,3009.5,0.405504]
[1763431406977,0.4979,3012.2,3009.7,0.405504]
[1763431407183,0.03314346,3012.1,3009.3,0.90699264]
[1763431407364,0.03314346,3012.0,3009.4,0.03322921]
[1763431407563,0.4979,3012.1,3008.9,0.405504]
[1763431407765,0.002,3012.7,3009.1,0.405504]
[1763431407766,0.1965,3011.9,3009.1,0.405504]
[1763431407993,0.03314346,3011.8,3009.1,0.03323252]
[1763431408296,0.1965,3011.9,3009.4,1.31249664]
[1763431408497,0.1965,3011.9,3009.6,0.405504]
[1763431408813,0.03514346,3012.7,3009.8,0.405504]
[1763431409112,0.03514346,3012.7,3009.5,0.71240226]
[1763431409113,0.03314346,3012.6,3010.0,0.405504]
[1763431409310,0.4999,3012.7,3010.0,0.405504]
[1763431409610,0.03314346,3012.6,3010.0,0.405504]
[1763431409762,0.4999,3012.7,3010.0,0.405504]
[1763431409763,0.002,3012.7,3010.0,0.405504]
[1763431409967,0.002,3012.7,3010.2,0.405504]
[1763431410511,0.03514346,3012.7,3010.2,0.405504]
[1763431410689,0.4999,3012.7,3010.3,0.03321928]
[1763431410868,0.4999,3012.7,3010.4,0.405504]
[1763431411971,0.002,3012.7,3010.6,1.31249664]
[1763431412211,0.4999,3012.7,3010.8,0.405504]
[1763431412664,0.4999,3012.7,3010.4,0.03321817]
[1763431412863,0.03314346,3012.6,3010.4,0.405504]
[1763431413101,0.03314346,3012.6,3010.3,0.53104346]
[1763431413301,0.4979,3012.5,3009.6,5.811526]
[1763431413503,0.03314346,3012.4,3009.9,0.405504]
[1763431413701,0.03314346,3012.4,3009.7,0.65239283]
[1763431413892,0.4979,3012.3,3009.1,0.90699264]
[1763431414095,0.03314346,3012.2,3009.4,0.4979]
[1763431414271,0.03314346,3012.2,3009.4,0.53112921]
[1763431414471,0.03314346,3012.2,3009.4,0.4979]
[1763431414472,0.4979,3012.1,3009.4,0.4979]
[1763431414782,0.4979,3012.1,3009.4,0.53112921]
[1763431414990,0.4979,3012.1,3009.5,0.405504]
[1763431415169,0.03314346,3012.0,3009.5,0.405504]
[1763431415375,0.6944,3011.9,3009.0,5.811526]
[1763431415605,0.6944,3011.9,3009.1,0.5811526]
[1763431415807,0.4602,3011.8,3009.4,0.4979]
[1763431416008,0.4602,3011.8,3009.5,0.405504]
[1763431416378,0.4602,3011.8,3009.2,0.405504]
[1763431416680,0.4602,3011.8,3009.7,1.31249664]
[1763431417671,0.4602,3012.2,3009.9,0.405504]
[1763431417872,0.4602,3012.2,3010.1,0.405504]
[1763431418070,0.4602,3012.2,3010.3,0.405504]
[1763431418273,0.4602,3012.2,3010.5,0.405504]
[1763431418516,0.03314346,3012.1,3009.9,0.405504]
[1763431418898,0.4602,3012.2,3009.9,0.405504]
[1763431419409,0.4602,3012.2,3010.1,0.405504]
[1763431419608,0.4602,3012.2,3010.2,0.405504]
[1763431419812,0.4602,3012.2,3010.4,0.405504]
[1763431419971,0.03314346,3012.1,3009.4,3.28701163]
[1763431420175,0.03314346,3012.1,3009.5,0.34763766]
[1763431420412,0.4602,3012.0,3009.1,0.5811526]
[1763431420609,0.03314346,3011.9,3009.4,0.405504]
[1763431420907,0.49334346,3012.0,3009.3,4.40799264]
[1763431421120,0.1875,3012.4,3009.3,4.40799264]
[1763431421121,0.49334346,3011.9,3009.7,0.405504]
[1763431421420,0.49334346,3011.9,3009.6,4.40799264]
[1763431421421,0.03314346,3011.9,3010.1,0.405504]
[1763431421630,0.03314346,3012.3,3010.3,4.81349664]
[1763431421803,0.4602,3012.1,3010.5,0.405504]
[1763431422131,0.03314346,3012.0,3010.5,0.405504]
[1763431422285,0.1875,3012.4,3009.6,5.811526]
[1763431422286,0.4602,3011.9,3009.6,2.38001899]
[1763431422486,0.4602,3011.9,3009.5,0.90699264]
[1763431422686,0.03314346,3011.8,3009.6,0.67880116]
[1763431422882,0.4602,3011.9,3009.2,3.28701163]
[1763431423119,0.49334346,3011.8,3009.2,0.90699264]
[1763431423286,0.49334346,3011.8,3009.1,0.5811526]
[1763431423287,0.4602,3011.8,3009.1,0.5811526]
[1763431423487,0.03314346,3011.7,3008.8,0.001]
[1763431423926,0.4602,3011.6,3008.8,0.001]
[1763431424089,0.03314346,3011.5,3008.8,0.001]
[1763431424495,0.4602,3011.4,3008.8,0.001]
[1763431424703,0.03314346,3011.3,3008.8,0.001]
[1763431425104,0.4602,3011.2,3008.8,0.001]
[1763431425313,0.03314346,3011.1,3008.8,0.001]
[1763431425717,0.4602,3011.0,3008.8,0.001]
[1763431425892,0.03314346,3010.9,3008.8,0.001]
[1763431426225,0.4602,3010.8,3008.8,0.001]
[1763431426521,0.03314346,3010.7,3008.8,0.001]
[1763431426921,0.6477,3010.6,3008.8,0.001]
[1763431427311,0.4602,3010.5,3008.8,0.001]
[1763431428624,0.03314346,3010.4,3008.8,0.001]
[1763431429010,0.1875,3008.9,3008.8,0.001]
[1763431429346,0.1875,3008.9,3006.6,4.04124655]
[1763431429547,0.6477,3008.9,3006.7,3.72439534]
[1763431429726,0.6477,3008.9,3006.7,5.38982121]
[1763431429923,0.1875,3008.9,3006.8,0.405504]
[1763431430135,0.4602,3008.8,3006.7,5.38982121]
[1763431430434,0.4602,3008.8,3006.7,0.40412466]
[1763431430635,0.1875,3008.9,3006.8,0.70273849]
[1763431430838,0.86706609,3011.2,3007.7,2.402504]
[1763431431024,0.86706609,3011.2,3007.6,7.03431162]
[1763431431025,0.4602,3011.1,3008.2,1.997]
[1763431431350,0.03314346,3011.0,3009.3,0.405504]
[1763431431554,0.4602,3010.9,3009.0,0.405504]
[1763431431754,0.03314346,3010.8,3009.1,0.36925156]
[1763431432048,0.4602,3010.9,3009.4,1.78339194]
[1763431432250,0.4602,3011.4,3009.9,1.78339194]
[1763431432447,0.4602,3011.4,3009.5,0.03322811]
[1763431432448,0.17342214,3010.8,3010.2,1.78339194]
[1763431432762,0.4622,3011.8,3010.3,1.78339194]
[1763431433416,0.4622,3011.8,3010.2,1.78339194]
[1763431433417,0.03314346,3011.7,3010.2,1.78339194]
[1763431433617,0.1734238,3011.7,3010.2,0.17833919]
[1763431433830,0.4602,3011.6,3010.2,0.17833919]
[1763431434241,0.4602,3011.6,3010.1,0.405504]
[1763431434242,0.4602,3011.6,3010.0,1.78339194]
[1763431434451,0.03314346,3011.5,3009.9,0.405504]
[1763431434638,0.4602,3011.6,3009.8,2.18889594]
[1763431434955,0.4602,3011.5,3010.0,0.405504]
[1763431435138,0.4602,3011.5,3010.1,0.21888959]
[1763431436061,0.03314346,3011.4,3010.2,0.405504]
[1763431436350,0.03314346,3011.4,3010.2,2.18889594]
[1763431436733,0.4602,3011.5,3010.3,1.78339194]
[1763431436934,0.03314346,3011.4,3010.4,2.18889594]
[1763431437148,0.03314346,3011.4,3010.4,0.62439359]
[1763431437345,0.1734238,3011.7,3010.6,0.405504]
[1763431437528,0.1734238,3011.7,3010.8,2.18889594]
[1763431437743,0.1734238,3011.7,3011.0,0.405504]
[1763431438054,0.1734238,3011.7,3011.2,2.18889594]
[1763431438258,0.1734238,3011.7,3011.2,1.78339194]
[1763431438426,0.1734238,3011.7,3011.1,0.405504]
[1763431438757,0.1734238,3011.7,3010.7,2.18889594]
[1763431439263,0.1734238,3011.7,3010.9,1.31249664]
[1763431439469,0.1734238,3011.7,3010.9,0.405504]
[1763431439763,0.1734238,3011.7,3010.8,0.405504]
[1763431439925,0.1734238,3011.7,3010.9,0.21888959]
[1763431440120,0.1734238,3011.7,3011.0,0.405504]
[1763431440556,0.1734238,3011.7,3011.2,0.405504]
[1763431440759,0.1734238,3011.7,3011.0,0.405504]
[1763431441186,0.03314346,3011.6,3010.8,1.78339194]
[1763431441463,0.3609238,3011.7,3010.1,0.21888959]
[1763431441464,0.8211238,3011.7,3010.2,1.78339194]
[1763431441626,0.4602,3011.6,3010.1,1.78339194]
[1763431441827,0.1734238,3011.7,3010.3,1.78339194]
[1763431442055,0.1734238,3011.7,3010.2,0.03322038]
[1763431442056,0.4602,3011.6,3010.2,1.78339194]
[1763431442258,0.03314346,3011.5,3010.2,1.78339194]
[1763431442436,0.4602,3011.6,3010.2,1.78339194]
[1763431442637,0.3609238,3011.7,3010.2,1.78339194]
[1763431442638,0.4602,3011.5,3010.2,1.78339194]
[1763431442954,0.03314346,3011.4,3010.1,1.78339194]
[1763431443259,0.4602,3011.5,3009.9,1.78339194]
[1763431443462,0.4602,3011.4,3009.8,1.78339194]
[1763431443635,0.3609238,3011.7,3010.1,0.405504]
[1763431443837,0.4602,3011.6,3010.1,2.18889594]
[1763431444050,0.4602,3011.6,3009.7,3.32023753]
[1763431444051,0.4602,3011.6,3010.4,0.405504]
[1763431444237,0.03314346,3011.5,3010.4,0.405504]
[1763431444444,0.4602,3011.6,3010.4,0.405504]
[1763431444637,0.4602,3011.5,3010.3,0.405504]
[1763431445237,0.3609238,3011.7,3010.3,0.405504]
[1763431445438,0.1734238,3011.7,3010.5,2.18889594]
[1763431445642,0.3609238,3011.7,3010.5,2.18889594]
[1763431445838,0.03314346,3011.6,3010.5,2.18889594]
[1763431446032,0.03314346,3011.6,3010.3,1.78339194]
[1763431446232,0.1859,3010.6,3009.4,1.78339194]
[1763431446442,0.1859,3010.6,3009.5,0.17843919]
[1763431446685,0.6486,3010.6,3009.5,1.96183113]
[1763431446990,0.03314346,3010.5,3009.5,0.17843919]
[1763431447135,0.4627,3010.5,3009.5,0.17843919]
[1763431447479,0.1859,3010.6,3009.4,1.78339194]
[1763431447685,0.1859,3010.6,3009.5,0.405504]
[1763431448565,0.1859,3010.9,3009.5,2.18889594]
[1763431448869,0.1859,3010.9,3009.7,0.405504]
[1763431449169,0.6486,3010.9,3009.7,0.405504]
[1763431449668,0.4627,3010.8,3009.6,0.405504]
[1763431449845,0.03314346,3010.7,3009.6,0.405504]
[1763431450046,0.03314346,3010.7,3009.4,1.78339194]
[1763431450248,0.4627,3010.6,3009.3,1.78439194]
[1763431450454,0.03314346,3010.5,3009.3,0.001]
[1763431450859,0.1859,3010.9,3009.3,0.17943919]
[1763431451064,0.4627,3010.4,3009.3,0.001]
[1763431451431,0.03314346,3010.3,3009.3,0.001]
[1763431451865,0.03314346,3010.3,3008.2,1.78339194]
[1763431451866,0.4627,3010.2,3008.2,1.78339194]
[1763431452030,0.03314346,3010.1,3008.1,1.78339194]
[1763431452465,0.4627,3010.0,3008.2,2.18889594]
[1763431452766,0.4627,3010.0,3008.3,0.21888959]
[1763431453077,0.03314346,3009.9,3008.2,1.78339194]
[1763431453282,0.03314346,3009.9,3008.1,1.78339194]
[1763431453578,0.4627,3009.8,3008.3,2.18889594]
[1763431453784,0.4627,3009.8,3008.5,0.405504]
[1763431453948,0.1859,3010.9,3008.5,0.405504]
[1763431454137,0.4627,3010.3,3008.8,1.78339194]
[1763431454336,0.03314346,3010.2,3008.9,0.405504]
[1763431454571,0.03314346,3010.2,3008.7,0.405504]
[1763431454736,0.1859,3010.9,3008.7,0.405504]
[1763431454737,0.4627,3010.1,3008.7,0.405504]
[1763431454930,0.03314346,3010.0,3008.9,0.405504]
[1763431455170,0.4627,3010.1,3008.9,0.405504]
[1763431455467,0.4627,3010.0,3008.9,0.405504]
[1763431455836,0.03314346,3009.9,3008.6,0.405504]
[1763431456135,0.03314346,3009.9,3008.0,1.78339194]
[1763431456335,0.03314346,3009.9,3008.0,1.96173113]
[1763431456336,0.4627,3009.8,3008.0,1.96173113]
[1763431456535,0.4627,3009.8,3008.1,2.22213951]
[1763431456748,0.4627,3009.8,3008.3,0.405504]
[1763431456962,0.4627,3009.8,3008.3,2.18889594]
[1763431457239,0.4627,3009.8,3008.5,0.405504]
[1763431457568,0.4627,3010.2,3008.7,0.405504]
[1763431457769,0.03314346,3010.1,3008.7,0.405504]
[1763431458268,0.4627,3010.0,3008.7,0.405504]
[1763431458651,0.03314346,3009.9,3008.5,1.78339194]
[1763431458857,0.03314346,3009.9,3008.2,1.78339194]
[1763431459179,0.4902,3009.8,3008.3,0.405504]
[1763431459370,0.4902,3009.8,3008.3,2.18889594]
[1763431459570,0.03314346,3009.7,3008.3,2.18889594]
[1763431459771,0.4902,3009.8,3008.3,2.18889594]
[1763431459995,0.4902,3009.7,3008.3,2.18889594]
[1763431460289,0.4902,3009.7,3008.3,0.405504]
[1763431460499,0.03314346,3009.6,3008.2,1.78339194]
[1763431460700,0.03314346,3009.6,3007.9,1.78339194]
[1763431460856,0.4902,3009.5,3007.8,0.90699264]
[1763431461058,0.4902,3009.5,3007.8,2.69038458]
[1763431461283,0.4902,3009.5,3007.7,1.60557279]
[1763431461599,0.4902,3009.5,3007.7,1.94446926]
[1763431461782,0.4902,3009.5,3007.7,2.8514619]
[1763431462161,0.4902,3009.5,3007.8,0.405504]
[1763431462466,0.4902,3009.5,3007.9,0.03324578]
[1763431462671,0.4902,3009.5,3007.9,0.405504]
[1763431462895,0.4902,3009.5,3007.9,2.22214172]
[1763431463099,0.03314346,3010.8,3008.6,0.405504]
[1763431463100,0.4902,3009.9,3008.6,0.405504]
[1763431463659,0.4902,3010.4,3008.8,2.18889594]
[1763431463872,0.4902,3010.4,3009.1,0.405504]
[1763431464097,0.4902,3010.4,3009.1,2.18889594]
[1763431464260,0.03314346,3010.3,3008.9,1.78339194]
[1763431464463,0.03314346,3010.3,3008.6,0.90699264]
[1763431464464,0.03314346,3010.3,3008.8,0.405504]
[1763431464684,0.002,3009.5,3008.8,0.405504]
[1763431464993,0.002,3009.5,3008.7,1.78339194]
[1763431465295,0.002,3009.5,3008.8,0.17833919]
[1763431465483,0.002,3009.5,3008.6,0.405504]
[1763431465879,0.002,3009.5,3008.8,0.405504]
[1763431466197,0.002,3009.5,3009.0,2.18889594]
[1763431467702,0.002,3009.5,3008.8,0.405504]
[1763431467906,0.002,3009.5,3008.7,1.78339194]
[1763431468402,0.002,3009.5,3008.8,0.405504]
[1763431468609,0.002,3009.5,3008.5,0.405504]
[1763431468779,0.002,3009.5,3008.5,2.18889594]
[1763431468980,0.03514346,3009.5,3008.5,1.78339194]
[1763431469308,0.03514346,3009.5,3008.1,3.28701163]
[1763431469309,0.002,3009.5,3008.7,0.405504]
[1763431469605,0.002,3009.5,3008.8,0.2222134]
[1763431469804,0.002,3009.5,3008.9,0.01669981]
[1763431470066,0.002,3009.5,3008.4,2.38001899]
[1763431470181,0.002,3009.5,3008.5,0.01670644]
[1763431470379,0.002,3009.5,3008.5,2.38001899]
[1763431470618,0.002,3009.5,3008.6,0.2380019]
[1763431470789,0.002,3009.5,3008.7,0.92369575]
[1763431470979,0.002,3009.5,3008.7,3.28701163]
[1763431471416,0.002,3009.5,3009.2,0.405504]
[1763431471580,0.002,3009.5,3009.3,0.01669317]
[1763431471794,0.002,3009.5,3009.4,0.405504]
[1763431472018,0.002,3009.5,3009.4,1.81466718]
[1763431472207,0.002,3009.5,3009.4,3.28769353]
[1763431472719,0.002,3009.5,3009.1,0.405504]
[1763431472919,0.002,3009.5,3009.0,2.38001899]
[1763431473220,0.002,3009.5,3009.0,2.78552299]
[1763431473383,0.002,3009.5,3009.2,0.405504]
[1763431473738,0.002,3009.5,3009.2,1.31249664]
[1763431473940,0.002,3009.5,3009.4,0.405504]
[1763431474116,0.002,3009.5,3009.3,0.405504]
[1763431474316,0.4922,3009.5,3008.8,2.38001899]
[1763431474521,0.002,3009.5,3008.7,3.28701163]
[1763431474841,0.002,3009.5,3008.9,0.90699264]
[1763431475042,0.002,3009.5,3009.0,0.77475556]
[1763431475244,0.002,3009.5,3009.0,3.15477455]
[1763431475446,0.002,3009.5,3009.0,0.405504]
[1763431476008,0.002,3009.5,3009.0,2.38001899]
[1763431476228,0.002,3009.5,3009.1,0.405504]
[1763431476643,0.002,3009.5,3009.3,1.31249664]
[1763431477522,0.002,3009.5,3009.3,3.69251563]
[1763431477711,0.002,3009.5,3009.4,0.82377556]
[1763431478646,0.002,3009.5,3009.4,0.405504]
[1763431479313,0.002,3009.5,3009.4,0.42219442]
[1763431479847,0.002,3009.5,3009.4,0.405504]
[1763431480012,0.002,3009.5,3009.4,1.31249664]
[1763431480215,0.002,3009.5,3009.4,0.405504]
[1763431480458,0.002,3009.5,3009.4,0.88310846]
[1763431480948,0.002,3009.5,3009.4,0.405504]
[1763431481948,0.002,3009.5,3009.4,0.42219442]
[1763431482331,0.002,3009.5,3009.4,0.405504]
[1763431484314,0.002,3009.5,3009.4,1.31249664]
[1763431484543,0.002,3009.5,3009.4,1.76489664]
[1763431484727,0.002,3009.5,3009.4,0.4524]
[1763431484982,0.002,3009.5,3008.8,2.40561424]
[1763431485144,0.002,3009.5,3008.6,0.2380019]
[1763431485145,0.002,3009.5,3009.1,0.1859]
[1763431486662,0.002,3009.5,3009.2,0.42219883]
[1763431486817,0.002,3009.5,3009.4,0.405504]
[1763431487021,0.002,3009.5,3009.4,1.12764706]
[1763431487259,0.002,3009.5,3009.4,1.58004706]
[1763431489328,0.002,3009.5,3009.4,0.857904]
[1763431489833,0.002,3009.5,3009.4,1.76489664]
[1763431490638,0.002,3009.5,3009.4,1.78158706]
[1763431491246,0.002,3009.5,3009.4,1.76489664]
[1763431492365,0.002,3009.5,3009.4,4.73824462]
[1763431492574,0.002,3009.5,3009.4,5.21206908]
[1763431492746,0.002,3009.5,3009.4,2.2387211]
[1763431493360,0.002,3009.5,3009.4,5.21206908]
[1763431494272,0.002,3009.5,3009.4,0.4524]
[1763431495331,0.002,3009.5,3009.4,3.25144861]
[1763431495534,0.002,3009.5,3009.4,0.857904]
[1763431495940,0.002,3009.5,3009.4,1.76489664]
[1763431496543,0.1875,3011.7,3009.7,3.906504]
[1763431496770,0.1875,3011.7,3011.3,2.20021192]
[1763431496975,0.4544,3011.8,3011.7,0.405504]
[1763431496976,0.002,3011.8,3011.7,0.405504]
[1763431497142,0.002,3011.8,3011.7,1.31249664]
[1763431497342,0.4544,3011.8,3011.5,1.79117764]
[1763431497547,0.002,3011.8,3011.6,2.19668164]
[1763431497783,0.002,3011.8,3011.7,0.405504]
[1763431499364,0.4544,3011.8,3011.7,2.19270736]
[1763431499572,0.4544,3011.8,3011.7,0.405504]
[1763431499573,0.002,3011.8,3011.7,0.405504]
[1763431499773,0.002,3011.8,3010.7,2.99117987]
[1763431499774,0.4544,3011.8,3011.4,1.78720336]
[1763431499944,0.4544,3011.8,3011.3,1.78720336]
[1763431500144,0.002,3011.8,3011.2,1.78720336]
[1763431500394,0.4524,3011.7,3011.2,1.78720336]
[1763431500564,0.04150617,3011.6,3011.1,1.78720336]
[1763431500760,0.4524,3011.5,3011.0,1.78720336]
[1763431500967,0.4524,3011.5,3010.9,1.78720336]
[1763431501292,0.4524,3011.5,3010.6,1.78720336]
[1763431501494,0.04150893,3011.4,3010.7,0.4524]
[1763431501786,0.4524,3011.5,3010.3,1.78720336]
[1763431501945,0.002,3011.8,3010.3,1.78720336]
[1763431501946,0.4524,3011.4,3010.3,1.9659237]
[1763431502145,0.1904,3010.4,3010.3,1.78720336]
[1763431502345,0.4524,3011.4,3010.4,0.405504]
[1763431502577,0.1904,3010.8,3010.4,0.405504]
[1763431502779,0.1904,3010.8,3010.3,1.78720336]
[1763431503446,0.1904,3010.8,3010.4,0.405504]
[1763431504118,0.6428,3010.8,3010.4,0.405504]
[1763431504301,0.1904,3010.8,3010.4,0.405504]
[1763431504479,0.1904,3010.8,3010.6,0.405504]
[1763431504876,0.4524,3011.2,3010.6,0.405504]
[1763431505085,0.4524,3011.7,3011.0,1.31249664]
[1763431505312,6.41042261,3011.4,3010.2,2.39294389]
[1763431505514,0.04151031,3011.3,3009.3,2.39294389]
[1763431505670,0.04151031,3011.3,3008.8,0.4697]
[1763431505671,1.40090295,3011.3,3008.8,0.4697]
[1763431505866,0.49391031,3011.3,3009.1,6.41042261]
[1763431506071,0.49391031,3011.3,3009.1,7.24806487]
[1763431506072,0.4709,3011.2,3009.1,7.24806487]
[1763431506322,0.04151306,3011.1,3009.1,7.24806487]
[1763431506474,0.04151306,3011.1,3008.7,1.09929264]
[1763431506673,0.4709,3011.0,3008.7,1.09929264]
[1763431506868,0.04151582,3010.9,3008.8,0.405504]
[1763431507070,0.0929,3010.9,3009.2,0.90699264]
[1763431507304,0.4709,3010.8,3009.3,0.73174153]
[1763431507477,0.4709,3010.8,3009.4,0.405504]
[1763431507910,0.4709,3010.8,3009.5,0.01667552]
[1763431508202,0.4709,3010.8,3009.7,1.31249664]
[1763431508905,0.0929,3010.9,3009.8,0.4848]
[1763431509112,6.41042261,3010.5,3009.5,0.4709]
[1763431509317,6.41042261,3010.5,3008.5,2.39394389]
[1763431509318,0.94851536,3010.4,3008.5,2.39394389]
[1763431509527,0.94851536,3010.4,3008.5,0.24039439]
[1763431509528,0.4709,3010.4,3008.5,0.24039439]
[1763431509819,0.0929,3010.9,3008.5,0.24039439]
[1763431509820,0.4709,3010.3,3008.5,0.001]
[1763431510326,0.1875,3008.6,3008.5,0.001]
[1763431510806,0.04152548,3010.2,3008.5,0.001]
[1763431510807,0.1875,3008.9,3008.5,0.001]
[1763431511314,0.4709,3008.8,3008.5,0.001]
[1763431511699,0.4709,3008.8,3008.2,0.001]
[1763431512024,0.04154618,3008.7,3008.2,0.001]
[1763431512510,0.04154618,3008.7,3006.5,1.62251761]
[1763431512511,0.4709,3008.6,3006.5,1.62251761]
[1763431512677,0.04154894,3008.5,3006.5,1.87546864]
[1763431512874,0.1417,3008.0,3005.8,1.63121355]
[1763431513074,0.04155723,3007.9,3005.7,2.50859066]
[1763431513326,0.37075723,3007.9,3005.6,2.55762587]
[1763431513840,0.3292,3007.9,3006.5,6.41042261]
[1763431514030,0.1417,3008.0,3007.1,0.90699264]
[1763431514181,0.1875,3008.9,3007.7,0.405504]
[1763431514378,0.1875,3008.9,3008.1,1.31249664]
[1763431514814,0.1875,3009.2,3008.3,0.405504]
[1763431515022,0.04152134,3010.5,3008.5,1.31249664]
[1763431515220,0.1875,3009.6,3009.0,1.31249664]
[1763431515381,0.3292,3010.1,3008.2,0.1966]
[1763431515382,0.3292,3011.1,3009.5,0.405504]
[1763431515722,0.3292,3011.0,3009.5,0.405504]
[1763431515927,0.3292,3011.0,3009.5,1.31249664]
[1763431516431,0.3292,3011.0,3010.0,1.31249664]
[1763431516726,0.1416,3011.2,3009.3,0.1966]
[1763431516727,0.3292,3010.9,3009.3,6.60702261]
[1763431516884,0.3292,3010.9,3009.4,2.5064789]
[1763431517077,0.3292,3010.9,3009.4,1.31249664]
[1763431517488,0.3292,3010.9,3009.0,1.31249664]
[1763431517489,0.0415172,3010.8,3009.0,1.31249664]
[1763431517914,0.1416,3011.2,3009.0,1.31249664]
[1763431517915,0.37071858,3010.7,3009.0,1.31249664]
[1763431518116,0.3292,3011.1,3009.6,0.405504]
[1763431518279,0.3292,3011.1,3009.6,1.16041689]
[1763431518786,0.1416,3011.2,3010.0,1.31249664]
[1763431518991,0.3292,3011.0,3010.0,1.31249664]
[1763431519195,0.04151582,3010.9,3010.0,1.31249664]
[1763431519604,0.3292,3011.0,3010.0,1.31249664]
[1763431519805,0.04151582,3010.9,3010.0,1.31249664]
[1763431520122,0.002,3010.8,3010.0,0.405504]
[1763431520326,0.002,3010.8,3009.6,0.75491289]
[1763431520327,0.3727172,3010.8,3009.6,0.405504]
[1763431520485,0.3727172,3010.8,3009.1,6.41042261]
[1763431520685,0.3727172,3010.8,3009.2,0.90699264]
[1763431520880,0.3727172,3010.8,3009.1,0.4919]
[1763431520881,0.3312,3010.8,3009.1,0.4919]
[1763431521125,0.3312,3010.8,3009.2,0.4919]
[1763431521321,0.3312,3010.8,3009.3,0.405504]
[1763431521495,0.04151858,3010.7,3009.3,0.405504]
[1763431521696,0.3312,3010.8,3009.0,0.90699264]
[1763431521697,0.002,3010.8,3009.5,0.405504]
[1763431522024,0.002,3010.8,3009.7,1.31249664]
[1763431522187,0.002,3010.8,3009.9,0.405504]
[1763431522383,0.002,3010.8,3010.7,0.591704]
[1763431522817,0.002,3010.8,3010.7,1.083604]
[1763431523590,0.002,3011.2,3010.8,0.405504]
[1763431523808,0.002,3011.2,3010.8,0.897404]
[1763431524098,0.002,3011.2,3010.9,0.90699264]
[1763431524300,0.002,3011.2,3011.0,1.16631536]
[1763431524501,0.002,3011.8,3011.0,1.65821536]
[1763431524705,0.002,3012.5,3011.6,1.31249664]
[1763431525014,0.002,3012.5,3012.1,0.591704]
[1763431525327,0.002,3012.5,3012.2,1.31249664]
[1763431525529,0.002,3012.5,3012.4,0.405504]
[1763431525690,0.002,3012.5,3012.2,0.405504]
[1763431525890,0.002,3012.5,3012.4,0.405504]
[1763431526091,0.1436,3015.0,3012.4,0.535504]
[1763431526294,0.1436,3015.0,3013.7,0.405504]
[1763431526495,0.1436,3015.0,3013.7,1.95203874]
[1763431526694,0.3392,3015.7,3013.9,0.405504]
[1763431526896,0.0978,3016.0,3014.3,1.31249664]
[1763431527133,0.437,3016.0,3014.3,1.31249664]
[1763431527296,0.437,3016.0,3013.8,0.4919]
[1763431527297,0.04144699,3015.9,3013.8,0.4919]
[1763431527504,0.3392,3015.9,3013.9,0.60934747]
[1763431528000,0.0978,3016.0,3014.3,1.31249664]
[1763431528196,0.0978,3016.0,3014.5,0.405504]
[1763431528660,0.38064699,3015.9,3014.4,0.405504]
[1763431528962,0.0978,3016.0,3014.6,0.405504]
[1763431529259,0.0978,3016.0,3014.6,0.897404]
[1763431529625,0.38064699,3015.9,3014.6,0.897404]
[1763431529935,0.0978,3016.0,3014.8,0.405504]
[1763431530941,0.0978,3016.0,3014.2,0.4919]
[1763431530942,0.38064699,3015.9,3014.2,0.4919]
[1763431531328,0.38064699,3015.9,3014.3,0.405504]
[1763431531531,0.04144837,3015.8,3013.9,0.90699264]
[1763431531733,0.04144837,3015.8,3013.2,0.4919]
[1763431531921,0.3392,3015.7,3013.8,5.80371698]
[1763431532256,0.3392,3015.7,3013.9,0.90699264]
[1763431532457,0.3392,3015.7,3013.9,1.39889264]
[1763431532671,0.04145112,3015.6,3013.9,0.90699264]
[1763431532824,0.3392,3015.7,3013.8,0.4919]
[1763431533026,0.3392,3015.6,3013.8,0.4919]
[1763431533225,0.3392,3015.6,3013.9,0.405504]
[1763431533621,0.3392,3015.6,3013.7,0.405504]
[1763431533826,0.3392,3015.6,3014.0,0.405504]
[1763431534057,0.3392,3015.6,3013.4,0.90699264]
[1763431534058,0.3392,3015.6,3013.7,0.405504]
[1763431534432,0.3392,3015.6,3013.9,0.405504]
[1763431534847,0.3392,3015.6,3014.1,0.405504]
[1763431535223,0.0978,3016.0,3014.1,1.65821536]
[1763431535426,0.38064699,3015.9,3014.1,1.083604]
[1763431535729,0.3392,3015.9,3014.3,0.405504]
[1763431536042,0.04144837,3015.8,3014.4,0.4816]
[1763431536242,0.3392,3015.9,3013.6,0.6678]
[1763431536445,0.38064837,3015.8,3013.2,0.1865]
[1763431536852,0.405504,3015.7,3012.6,0.4816]
[1763431537038,0.405504,3015.5,3012.6,0.4816]
[1763431537362,1.00479264,3016.0,3012.6,0.4816]
[1763431537363,0.405504,3015.3,3012.6,0.4816]
[1763431537534,0.04145661,3015.2,3012.6,0.4816]
[1763431537738,0.38065661,3015.2,3012.7,0.405504]
[1763431537941,0.38065661,3015.2,3012.6,0.4816]
[1763431538672,0.38065661,3015.2,3012.1,0.1862]
[1763431538673,0.405504,3015.1,3012.1,0.1862]
[1763431538877,0.52425936,3015.0,3012.2,0.4816]